bitfinex/quotes_ETHUSD_20241024
["timestamp","ask_amount","ask_price","bid_price","bid_amount"]
[1729803903913,3.93926,2538.6,2538.2,0.7763]
[1729803906512,3.93938,2538.5,2538.2,0.7763]
[1729803907129,5.54970244,2538.6,2538.2,0.7763]
[1729803908508,3.93926,2538.6,2538.2,0.7763]
[1729803910333,5.54948244,2538.7,2538.2,0.7763]
[1729803910628,3.93919,2538.6,2538.2,0.7763]
[1729803912620,5.54984244,2538.5,2538.2,0.7763]
[1729803912821,3.9394,2538.5,2538.2,0.7763]
[1729803914599,3.93955,2538.4,2538.2,0.7763]
[1729803919247,3.93937,2538.5,2538.2,0.7763]
[1729803919443,3.93937,2538.5,2538.2,1.59765297]
[1729803922749,3.93937,2538.5,2538.3,0.82135297]
[1729803923454,3.93937,2538.5,2538.2,1.59765297]
[1729803923819,3.93937,2538.5,2538.3,0.82135297]
[1729803924551,3.93937,2538.5,2538.2,1.59765297]
[1729803924861,3.93937,2538.5,2538.3,0.82135297]
[1729803928271,3.93921,2538.6,2538.3,0.82135297]
[1729803928568,7.87853,2538.6,2538.3,0.82135297]
[1729803928768,3.93921,2538.6,2538.3,0.82135297]
[1729803928948,3.93934,2538.5,2538.3,0.82135297]
[1729803931170,3.93934,2538.5,2538.2,2.00832945]
[1729803931465,3.93934,2538.5,2538.2,0.7763]
[1729803932450,0.1054454,2538.4,2538.2,0.7763]
[1729803932958,3.93937,2538.5,2538.2,0.7763]
[1729803933157,0.10506472,2538.3,2538.2,0.7763]
[1729803933358,3.93937,2538.5,2538.2,0.7763]
[1729803933671,0.10517979,2538.3,2538.2,0.7763]
[1729803933843,3.93937,2538.5,2538.2,0.7763]
[1729803934370,0.10523714,2538.4,2538.2,0.7763]
[1729803934873,7.87847,2538.6,2538.2,0.7763]
[1729803935046,0.10517979,2538.3,2538.2,0.7763]
[1729803935246,7.87847,2538.6,2538.2,0.7763]
[1729803935460,0.10517979,2538.3,2538.2,0.7763]
[1729803935637,7.87847,2538.6,2538.2,0.7763]
[1729803935838,0.10517979,2538.3,2538.2,0.7763]
[1729803936077,3.93934,2538.5,2538.2,0.7763]
[1729803936666,0.10523714,2538.4,2538.2,0.7763]
[1729803938379,3.93924,2538.6,2538.2,0.7763]
[1729803938550,0.1051839,2538.3,2538.2,0.7763]
[1729803938754,3.93924,2538.6,2538.2,0.7763]
[1729803939078,0.10529859,2538.5,2538.2,0.7763]
[1729803939368,4.04463859,2538.5,2538.2,0.7763]
[1729803939574,4.04463859,2538.5,2538.3,0.82304981]
[1729803942545,0.10529859,2538.5,2538.3,0.82304981]
[1729803942771,3.93904,2538.7,2538.3,0.82304981]
[1729803943084,0.10524125,2538.4,2538.3,0.82304981]
[1729803943242,3.93904,2538.7,2538.2,2.01087472]
[1729803943442,0.10524125,2538.4,2538.2,2.01087472]
[1729803943665,7.87815,2538.7,2538.2,2.01087472]
[1729803943848,0.1051839,2538.3,2538.2,2.01087472]
[1729803944049,3.93904,2538.7,2538.2,0.7763]
[1729803944346,3.93943,2538.5,2538.2,0.7763]
[1729803944542,3.93943,2538.5,2538.4,0.82365149]
[1729803946376,4.04472448,2538.5,2538.4,0.82365149]
[1729803946589,0.10529448,2538.5,2538.4,0.82365149]
[1729803950376,4.04462448,2538.5,2538.4,0.82365149]
[1729803953061,4.09462448,2538.5,2538.4,0.82365149]
[1729803955084,4.04462448,2538.5,2538.4,0.77365149]
[1729803955558,4.04462448,2538.5,2538.3,1.23547723]
[1729803959298,0.10529448,2538.5,2538.3,1.23547723]
[1729803960512,4.04463448,2538.5,2538.3,1.23547723]
[1729803960686,3.93934,2538.5,2538.3,1.23547723]
[1729803960997,0.10170621,2538.4,2538.3,1.23547723]
[1729803961292,0.10170621,2538.4,2538.3,2.5983491]
[1729803961668,4.04118621,2538.4,2538.3,2.5983491]
[1729803962003,4.04118621,2538.4,2538.2,1.23547723]
[1729803962884,4.91904883,2538.4,2538.2,1.23547723]
[1729803963081,0.97956883,2538.4,2538.2,1.23547723]
[1729803963294,0.10170621,2538.4,2538.2,1.23547723]
[1729803963499,4.04120621,2538.4,2538.2,1.23547723]
[1729803965074,4.04120621,2538.4,2538.3,0.82410733]
[1729803965974,4.04120621,2538.4,2538.2,1.23547723]
[1729803966386,4.04120621,2538.4,2538.3,0.82408464]
[1729803967211,0.10170621,2538.4,2538.3,2.01155079]
[1729803967378,0.10170621,2538.4,2538.3,11.62889811]
[1729803967577,3.93855,2539.1,2538.5,0.8169]
[1729803967779,3.93858,2539.0,2538.9,0.82344336]
[1729803968385,3.93871,2538.9,2538.8,0.82344336]
[1729803968680,3.93871,2538.9,2538.6,0.82344336]
[1729803968681,3.93902,2538.7,2538.6,0.82344336]
[1729803968902,3.93902,2538.7,2538.5,0.82344336]
[1729803969075,3.93917,2538.6,2538.5,0.82344336]
[1729803969277,4.742,2538.9,2538.5,0.82344336]
[1729803969471,3.93902,2538.7,2538.6,0.82344336]
[1729803970378,3.93902,2538.7,2538.5,0.82344336]
[1729803970775,4.742,2538.9,2538.5,0.82344336]
[1729803971108,4.02372522,2538.8,2538.5,0.82344336]
[1729803973880,4.02372522,2538.8,2538.6,0.82344336]
[1729803974311,4.02372522,2538.8,2538.5,0.82344336]
[1729803974679,4.02372522,2538.8,2538.6,0.82344336]
[1729803975000,4.02372522,2538.8,2538.5,0.82344336]
[1729803975899,3.93909,2538.7,2538.5,0.82344336]
[1729803976283,0.08473229,2538.6,2538.5,0.82344336]
[1729803980288,3.93909,2538.7,2538.5,0.82344336]
[1729803980489,0.08190788,2538.6,2538.5,0.82344336]
[1729803982015,0.08190788,2538.6,2538.4,0.82344336]
[1729803982887,3.93933,2538.5,2538.4,0.82344336]
[1729803983228,3.93948,2538.4,2538.2,0.82344336]
[1729803983397,3.93964,2538.3,2538.1,0.82344336]
[1729803983580,3.93979,2538.2,2538.1,0.82344336]
[1729803983778,3.93979,2538.2,2537.9,0.82344336]
[1729803983779,3.93995,2538.1,2537.9,0.82344336]
[1729803984104,0.08161739,2538.0,2537.9,0.82344336]
[1729803984482,0.08161739,2538.0,2537.8,0.82344336]
[1729803985274,4.02175739,2538.0,2537.8,0.82344336]
[1729803986088,3.94042,2537.8,2537.7,0.82344336]
[1729803986307,3.94042,2537.8,2537.6,0.82344336]
[1729803986505,3.94057,2537.7,2537.5,0.82344336]
[1729803986819,0.08096737,2537.6,2537.5,0.82344336]
[1729803987678,0.08096737,2537.6,2537.4,1.68225974]
[1729803987880,3.9402,2538.0,2537.5,1.23516504]
[1729803988097,3.94036,2537.9,2537.6,0.82324316]
[1729803988303,4.02141892,2537.9,2537.6,0.82324316]
[1729803988983,0.08105892,2537.9,2537.6,0.82324316]
[1729803990078,0.08105892,2537.9,2537.5,0.82324316]
[1729803990897,4.02131892,2537.9,2537.5,0.82324316]
[1729803993422,3.94043,2537.8,2537.5,0.82324316]
[1729803993629,4.01872136,2537.8,2537.5,0.82324316]
[1729803995529,4.01872136,2537.8,2537.4,1.60324316]
[1729803996030,4.01872136,2537.8,2537.4,1.68205472]
[1729803996331,4.01872136,2537.8,2537.4,0.85881156]
[1729803996830,4.01872136,2537.8,2537.4,0.78]
[1729803997542,4.01872136,2537.8,2537.4,1.60201877]
[1729804005953,4.01872136,2537.8,2537.4,0.78]
[1729804006466,3.94059,2537.7,2537.4,1.60201877]
[1729804006645,4.70848,2537.5,2537.4,0.82201877]
[1729804006844,4.70848,2537.5,2537.1,0.3843]
[1729804006845,3.94117,2537.4,2537.1,0.3843]
[1729804007152,0.07795497,2537.3,2537.1,0.3843]
[1729804007514,4.01917497,2537.3,2537.1,0.3843]
[1729804009431,7.96051497,2537.3,2537.1,0.3843]
[1729804009922,4.74775,2537.2,2537.1,0.3843]
[1729804010425,4.82544563,2537.2,2537.1,0.3843]
[1729804014945,4.01904563,2537.2,2537.1,0.3843]
[1729804019066,4.78304563,2537.2,2537.1,0.3843]
[1729804038602,0.07769563,2537.2,2537.1,0.3843]
[1729804038896,3.94122,2537.3,2537.1,0.3843]
[1729804039065,0.07654287,2537.2,2537.1,0.3843]
[1729804039263,3.94104,2537.4,2537.1,0.3843]
[1729804039508,0.07406835,2537.3,2537.1,0.3843]
[1729804040616,4.01528835,2537.3,2537.1,0.3843]
[1729804040814,0.07406835,2537.3,2537.1,0.3843]
[1729804042590,4.01526835,2537.3,2537.1,0.3843]
[1729804053814,7.95656835,2537.3,2537.1,0.3843]
[1729804054015,0.07406835,2537.3,2537.2,0.7813]
[1729804054222,0.07406835,2537.3,2537.2,9.03255159]
[1729804054393,3.94018,2538.0,2537.3,0.8214]
[1729804054730,0.06747571,2537.9,2537.6,0.8214]
[1729804055225,3.93995,2538.1,2537.6,0.8214]
[1729804055594,7.88003,2538.1,2537.6,0.8214]
[1729804056518,3.93995,2538.1,2537.6,0.8214]
[1729804056825,7.88001,2538.1,2537.6,0.8214]
[1729804057711,3.94016,2538.0,2537.6,0.8214]
[1729804058021,4.00548795,2538.0,2537.6,0.8214]
[1729804058232,4.00548795,2538.0,2537.6,1.11698071]
[1729804058727,0.06532795,2538.0,2537.7,0.7665]
[1729804058938,3.93977,2538.3,2537.7,0.7665]
[1729804059112,0.06527059,2537.9,2537.7,0.7665]
[1729804059310,3.9398,2538.2,2537.9,0.7665]
[1729804061109,0.7576,2538.7,2537.9,0.7665]
[1729804061348,3.93929,2538.6,2538.1,0.8319]
[1729804061825,0.06637386,2538.5,2538.3,0.8319]
[1729804062397,3.93896,2538.8,2538.5,0.8319]
[1729804062830,0.06649677,2538.7,2538.5,0.8319]
[1729804063135,7.87733,2539.0,2538.5,0.8319]
[1729804063297,3.93865,2539.0,2538.6,0.0787788]
[1729804063634,3.93872,2538.9,2538.6,0.0787788]
[1729804064445,3.93865,2539.0,2538.6,0.0787788]
[1729804065131,7.87733,2539.0,2538.6,0.0787788]
[1729804065318,0.06680523,2538.9,2538.6,0.0787788]
[1729804065730,4.00558523,2538.9,2538.5,0.8319]
[1729804068208,4.00554523,2538.9,2538.5,0.8319]
[1729804069564,4.00560523,2538.9,2538.5,0.8319]
[1729804070216,4.00551523,2538.9,2538.5,0.8319]
[1729804072031,3.93888,2538.8,2538.5,0.8319]
[1729804072542,0.06673263,2538.7,2538.5,0.8319]
[1729804073047,3.93888,2538.8,2538.5,0.8319]
[1729804073247,0.0668135,2538.6,2538.5,0.8319]
[1729804073449,3.93888,2538.8,2538.5,0.8319]
[1729804073650,0.0668135,2538.6,2538.5,0.8319]
[1729804073822,3.93888,2538.8,2538.5,0.8319]
[1729804074022,0.0668135,2538.6,2538.5,0.8319]
[1729804074528,3.93888,2538.8,2538.5,0.8319]
[1729804074728,0.0668135,2538.6,2538.5,0.8319]
[1729804075053,3.93871,2538.9,2538.5,0.8319]
[1729804075257,0.0668135,2538.6,2538.5,0.91067578]
[1729804075454,3.93836,2539.2,2538.6,0.7528]
[1729804075662,3.9384,2539.1,2538.8,0.7528]
[1729804075959,4.00550008,2539.1,2538.8,0.7528]
[1729804076734,4.00550008,2539.1,2538.8,0.83156899]
[1729804076943,0.06710008,2539.1,2538.8,0.83156899]
[1729804077143,3.93812,2539.3,2538.8,0.83156899]
[1729804077454,0.067185,2539.0,2538.8,0.83156899]
[1729804077658,3.93812,2539.3,2538.8,0.7528]
[1729804077868,0.06712769,2538.9,2538.8,0.7528]
[1729804078458,3.93731,2539.8,2539.1,0.8254]
[1729804078658,3.93749,2539.7,2539.3,0.8254]
[1729804079021,4.70697,2540.1,2539.4,0.07874805]
[1729804079375,3.93718,2539.9,2539.5,0.8128]
[1729804080326,3.93719,2539.9,2539.5,0.8128]
[1729804080522,0.06493946,2539.8,2539.5,0.8128]
[1729804081348,0.06493946,2539.8,2539.6,0.07874254]
[1729804081968,3.93705,2540.0,2539.6,0.07874254]
[1729804082134,0.06511288,2539.7,2539.6,0.07874254]
[1729804082337,3.93705,2540.0,2539.6,0.07874254]
[1729804082568,0.06511288,2539.7,2539.6,0.07874254]
[1729804082779,3.93705,2540.0,2539.6,0.07874254]
[1729804083072,0.06511288,2539.7,2539.6,0.83154254]
[1729804083272,3.93702,2540.0,2539.6,1.34753128]
[1729804083473,0.06517878,2539.7,2539.6,0.83154254]
[1729804083652,3.93702,2540.0,2539.6,0.83154254]
[1729804083984,3.93718,2539.9,2539.6,0.7528]
[1729804084272,4.00248157,2539.9,2539.6,0.7528]
[1729804084472,7.93972157,2539.9,2539.6,0.7528]
[1729804084882,3.93732,2539.8,2539.6,0.7528]
[1729804085080,4.00248157,2539.9,2539.6,0.7528]
[1729804085081,3.93747,2539.7,2539.6,0.7528]
[1729804085379,3.93747,2539.7,2539.3,0.90098699]
[1729804085380,4.00265701,2539.7,2539.3,0.8137]
[1729804085539,3.9379,2539.5,2539.3,0.8137]
[1729804086078,0.06496983,2539.4,2539.3,0.8137]
[1729804086775,3.93777,2539.6,2539.3,0.8137]
[1729804087085,4.76978,2539.8,2539.3,0.8137]
[1729804087086,0.06496983,2539.4,2539.3,0.8137]
[1729804087382,0.06496983,2539.4,2539.3,1.2029456]
[1729804087567,3.93738,2539.8,2539.3,1.2029456]
[1729804087768,0.06496983,2539.4,2539.3,1.2029456]
[1729804087947,3.93751,2539.7,2539.3,1.2029456]
[1729804088146,0.06496983,2539.4,2539.3,1.2029456]
[1729804088347,3.93751,2539.7,2539.3,1.2029456]
[1729804088586,0.06496983,2539.4,2539.3,1.2029456]
[1729804088882,3.93738,2539.8,2539.3,1.2029456]
[1729804089081,0.06496983,2539.4,2539.3,1.2029456]
[1729804089684,3.93748,2539.7,2539.3,1.2029456]
[1729804090283,0.06508442,2539.6,2539.3,1.2029456]
[1729804091397,3.93778,2539.5,2539.3,0.8137]
[1729804091578,3.93808,2539.4,2539.1,0.8203]
[1729804091759,3.93818,2539.3,2538.9,1.64253985]
[1729804092097,3.93852,2539.1,2538.7,1.64253985]
[1729804092399,0.06447015,2539.0,2538.7,1.64253985]
[1729804092553,3.93871,2538.9,2538.7,0.8203]
[1729804092752,4.00304975,2538.9,2538.7,0.8203]
[1729804092954,0.06433975,2538.9,2538.7,0.8203]
[1729804093257,4.00306975,2538.9,2538.7,0.8203]
[1729804094457,3.93886,2538.8,2538.5,1.61313985]
[1729804094654,3.93933,2538.5,2538.4,0.82223985]
[1729804094879,3.93964,2538.3,2538.1,0.82223985]
[1729804095081,3.93964,2538.3,2537.9,0.7909]
[1729804095293,0.06365047,2538.2,2538.0,0.07879836]
[1729804095594,3.9394,2538.5,2538.0,0.07879836]
[1729804095792,0.06346128,2538.1,2538.0,0.07879836]
[1729804095993,3.9394,2538.5,2538.0,0.07879836]
[1729804096189,0.06346128,2538.1,2538.0,0.90103821]
[1729804096392,7.87884,2538.5,2538.0,0.07879836]
[1729804096600,0.06334178,2538.1,2538.0,0.07879836]
[1729804096762,7.87884,2538.5,2538.0,0.07879836]
[1729804096963,0.06334178,2538.1,2538.0,0.07879836]
[1729804097159,3.93919,2538.6,2538.0,0.07879836]
[1729804097361,3.93913,2538.7,2538.1,1.59573985]
[1729804097663,3.9392,2538.6,2538.1,1.59573985]
[1729804098763,4.00287987,2538.5,2538.1,0.7735]
[1729804099161,4.00287987,2538.5,2538.1,1.59573985]
[1729804100161,4.00287987,2538.5,2538.2,0.82223985]
[1729804100489,3.93942,2538.5,2538.1,1.59573985]
[1729804100693,3.93908,2538.7,2538.2,0.2907898]
[1729804100991,3.93943,2538.5,2538.1,1.59573985]
[1729804101391,0.06342317,2538.4,2538.2,0.90102746]
[1729804101596,3.93924,2538.6,2538.2,0.82223985]
[1729804101787,0.06336582,2538.3,2538.2,0.82223985]
[1729804101965,3.93924,2538.6,2538.2,0.82223985]
[1729804102167,0.06336582,2538.3,2538.1,1.59573985]
[1729804102470,3.93911,2538.7,2538.2,1.13393461]
[1729804102687,3.93926,2538.6,2538.2,1.13393461]
[1729804102884,3.93926,2538.6,2538.2,0.90102465]
[1729804103475,3.93911,2538.7,2538.3,0.82223985]
[1729804103675,3.93911,2538.7,2538.3,0.7977]
[1729804104205,3.93911,2538.7,2538.3,1.61993985]
[1729804104705,7.87824,2538.7,2538.3,1.61993985]
[1729804105111,3.93911,2538.7,2538.3,1.61993985]
[1729804105289,3.93911,2538.7,2538.3,0.7977]
[1729804105485,7.87827,2538.7,2538.3,1.91314829]
[1729804105699,3.93911,2538.7,2538.3,1.09090844]
[1729804106012,0.06354194,2538.6,2538.3,1.09090844]
[1729804106572,0.06354194,2538.6,2538.3,1.91314829]
[1729804107216,0.06354194,2538.6,2538.3,1.09090844]
[1729804108123,4.00274194,2538.6,2538.3,1.09090844]
[1729804108679,0.06354194,2538.6,2538.3,1.09090844]
[1729804109820,4.00279194,2538.6,2538.3,0.7977]
[1729804110011,3.93933,2538.5,2538.3,0.7977]
[1729804110387,0.06342727,2538.4,2538.3,0.7977]
[1729804113536,3.93857,2539.0,2538.3,3.93964]
[1729804113830,0.06157846,2538.9,2538.4,5.2238107]
[1729804114193,3.93857,2539.0,2538.4,5.2238107]
[1729804114393,3.93874,2538.9,2538.4,5.2238107]
[1729804114694,0.06152113,2538.8,2538.4,5.2238107]
[1729804114897,0.06152113,2538.8,2538.4,1.2844407]
[1729804115098,0.06152113,2538.8,2538.5,0.46646017]
[1729804116426,3.93903,2538.7,2538.4,0.8117]
[1729804116636,0.87932113,2538.8,2538.4,0.8117]
[1729804116993,4.81829113,2538.8,2538.4,0.8117]
[1729804117319,0.87932113,2538.8,2538.4,0.8117]
[1729804117698,4.81829113,2538.8,2538.4,0.8117]
[1729804120032,1.75502424,2538.8,2538.2,0.8045]
[1729804120330,4.00043113,2538.8,2538.3,0.07878432]
[1729804120827,4.00043113,2538.8,2538.2,4.74417]
[1729804121032,0.06152113,2538.8,2538.2,0.8045]
[1729804121228,0.06152113,2538.8,2538.3,0.8321]
[1729804121600,0.06152113,2538.8,2538.5,0.7901]
[1729804121799,0.06152113,2538.8,2538.5,4.72942]
[1729804122143,3.93857,2539.0,2538.5,0.86887653]
[1729804122501,0.05953983,2538.9,2538.5,0.86887653]
[1729804122697,0.05953983,2538.9,2538.5,4.80818653]
[1729804123197,0.05953983,2538.9,2538.5,0.86887653]
[1729804123396,3.93841,2539.1,2538.5,4.80805653]
[1729804123592,0.05929907,2538.8,2538.6,3.93916]
[1729804123903,3.93841,2539.1,2538.7,0.07877111]
[1729804125831,0.05941371,2539.0,2538.7,0.07877111]
[1729804127103,0.05941371,2539.0,2538.8,0.8211]
[1729804127405,0.05941371,2539.0,2538.9,4.01748107]
[1729804127806,3.93794,2539.4,2538.9,3.93871]
[1729804128535,3.93794,2539.4,2539.0,0.07875992]
[1729804128909,3.93794,2539.4,2539.1,0.8218]
[1729804129312,3.93787,2539.5,2539.1,0.8218]
[1729804129845,0.05964297,2539.4,2539.1,0.8218]
[1729804130546,0.05964297,2539.4,2539.1,0.90055895]
[1729804131509,3.99759297,2539.4,2539.1,0.90055895]
[1729804131748,0.05964297,2539.4,2539.1,0.8218]
[1729804132247,0.05964297,2539.4,2539.2,0.07875901]
[1729804132446,0.05964297,2539.4,2539.3,7.72119]
[1729804132607,0.05777284,2539.4,2539.3,7.72119]
[1729804132804,3.93724,2539.9,2539.3,8.53920767]
[1729804133128,3.93724,2539.9,2539.5,0.8102]
[1729804133334,0.05409912,2539.8,2539.6,0.07874302]
[1729804133905,3.93708,2540.0,2539.6,0.07874302]
[1729804134308,0.0541564,2539.9,2539.6,4.01636302]
[1729804134509,3.93695,2540.1,2539.6,3.93762]
[1729804134942,0.0542509,2540.0,2539.6,3.93762]
[1729804135630,0.0542509,2540.0,2539.6,3.93754]
[1729804135829,0.0542509,2540.0,2539.9,4.70306]
[1729804136139,8.64447,2540.5,2539.9,4.70306]
[1729804136311,0.0544033,2540.0,2539.9,4.70306]
[1729804136507,0.05258265,2540.0,2539.9,4.70306]
[1729804136751,3.93639,2540.4,2539.9,4.70306]
[1729804137054,0.05275403,2540.3,2539.9,4.70306]
[1729804137262,0.05275403,2540.3,2540.0,3.93696]
[1729804137408,4.70322,2540.7,2540.2,3.93669]
[1729804137409,3.93602,2540.7,2540.2,3.93669]
[1729804137614,3.9361,2540.6,2540.1,4.75112]
[1729804137814,3.93602,2540.7,2540.2,3.93668]
[1729804138015,7.87204,2540.7,2540.2,3.93668]
[1729804138243,3.93602,2540.7,2540.1,4.75114]
[1729804138443,3.93608,2540.6,2540.1,0.8143]
[1729804138749,3.93624,2540.5,2540.1,0.8143]
[1729804138951,3.93639,2540.4,2540.1,0.8143]
[1729804139646,3.93624,2540.5,2540.1,0.8143]
[1729804139847,3.93624,2540.5,2540.2,0.07872542]
[1729804140022,3.93638,2540.4,2540.2,0.07872542]
[1729804140219,3.93624,2540.5,2540.1,0.8143]
[1729804140424,3.93624,2540.5,2540.2,0.07872536]
[1729804142476,3.93638,2540.4,2540.1,0.8143]
[1729804142765,3.93624,2540.5,2540.1,0.8143]
[1729804143078,3.93624,2540.5,2540.2,0.07872547]
[1729804143249,0.8231,2540.6,2540.2,0.07872547]
[1729804143435,3.93625,2540.5,2540.2,0.07872547]
[1729804144674,3.93597,2540.7,2540.1,0.8143]
[1729804144878,3.93597,2540.7,2540.1,4.75113]
[1729804145376,3.93609,2540.6,2540.1,4.75113]
[1729804145547,3.93597,2540.7,2540.2,3.93668]
[1729804145740,3.93597,2540.7,2540.1,4.75115]
[1729804145937,3.93611,2540.6,2540.1,4.75115]
[1729804146138,3.93611,2540.6,2540.1,0.8143]
[1729804146339,0.05312605,2540.5,2540.1,0.8143]
[1729804149174,3.93597,2540.7,2540.2,0.07871911]
[1729804149366,0.05180439,2540.6,2540.1,4.75104]
[1729804150386,0.05180439,2540.6,2540.1,0.8143]
[1729804150751,3.93624,2540.5,2540.1,0.8143]
[1729804150968,0.05175701,2540.4,2540.1,0.8143]
[1729804151548,3.98814701,2540.4,2540.1,0.8143]
[1729804152093,0.05175701,2540.4,2540.1,0.8143]
[1729804152877,0.05175701,2540.4,2540.3,4.70184]
[1729804153067,3.93576,2540.8,2540.4,0.7653]
[1729804153271,3.93576,2540.8,2540.5,0.07871637]
[1729804153663,0.0513853,2540.7,2540.5,0.07871637]
[1729804153998,3.93576,2540.8,2540.5,0.07871637]
[1729804154204,0.05132806,2540.6,2540.5,0.07871637]
[1729804154506,3.93548,2541.0,2540.5,0.07871637]
[1729804154864,0.04984975,2540.9,2540.5,0.07871637]
[1729804155161,0.04984975,2540.9,2540.6,0.79]
[1729804155359,0.04984975,2540.9,2540.7,0.07871204]
[1729804155559,7.87053,2541.2,2540.7,0.07871204]
[1729804155805,3.98532018,2541.1,2540.7,0.07871204]
[1729804156013,0.05000018,2541.1,2540.7,0.07871204]
[1729804156307,0.05000018,2541.1,2540.8,4.74728]
[1729804156515,0.05000018,2541.1,2540.9,0.07870008]
[1729804156770,0.8808296,2541.5,2541.0,0.8116]
[1729804156771,0.1229296,2541.5,2541.0,0.8116]
[1729804156975,3.93492,2541.4,2541.0,0.8116]
[1729804157212,0.04903376,2541.3,2541.0,0.8116]
[1729804157414,0.04903376,2541.3,2541.0,0.89029585]
[1729804157617,0.1229296,2541.5,2541.0,4.82563585]
[1729804157918,0.0493263,2541.2,2541.1,0.8067]
[1729804158119,4.0576096,2541.5,2541.1,0.88539241]
[1729804158413,0.04946827,2541.4,2541.1,0.8067]
[1729804158718,3.98430827,2541.4,2541.1,0.8067]
[1729804158920,3.93501,2541.3,2541.1,0.8067]
[1729804159301,0.04906971,2541.2,2541.1,0.8067]
[1729804159676,3.93487,2541.4,2541.1,0.8067]
[1729804159877,0.04906971,2541.2,2541.1,0.8067]
[1729804160073,4.75991,2541.4,2540.8,0.7731]
[1729804160302,3.98430971,2541.2,2540.8,0.7731]
[1729804160500,3.93524,2541.2,2540.8,0.7731]
[1729804160815,0.04910298,2541.1,2540.8,0.7731]
[1729804161522,3.93547,2541.0,2540.7,0.81801767]
[1729804161817,0.049042,2540.9,2540.6,4.60161767]
[1729804162375,0.049042,2540.9,2540.6,1.60161767]
[1729804164501,3.93546,2541.0,2540.6,1.60161767]
[1729804165035,3.93599,2540.7,2540.5,4.0343818]
[1729804165408,0.04872504,2540.6,2540.5,4.0343818]
[1729804165799,3.93522,2541.2,2540.5,9.219366]
[1729804165991,3.93522,2541.2,2540.6,0.07870723]
[1729804166238,3.93507,2541.3,2540.6,4.01476723]
[1729804166404,3.93484,2541.4,2540.9,3.93559]
[1729804166740,3.93484,2541.4,2541.0,0.07869952]
[1729804167534,3.93484,2541.4,2540.9,0.0787002]
[1729804167907,3.93484,2541.4,2540.9,0.53568619]
[1729804168100,0.04912281,2541.3,2540.9,0.53568619]
[1729804168517,0.04912281,2541.3,2541.0,0.8116]
[1729804168725,0.04912281,2541.3,2541.1,0.0786968]
[1729804168927,0.1229296,2541.5,2541.1,4.0139668]
[1729804169441,0.04913373,2541.4,2541.1,4.0139668]
[1729804169738,0.04913373,2541.4,2541.1,0.0786968]
[1729804172855,0.04913373,2541.4,2541.0,0.8116]
[1729804173158,3.93503,2541.3,2541.0,0.8116]
[1729804173453,3.98446057,2541.2,2540.8,0.8066]
[1729804173629,3.98446057,2541.2,2540.8,1.27006177]
[1729804173814,3.93557,2541.0,2540.6,0.8066]
[1729804174328,0.04924747,2540.9,2540.6,0.8066]
[1729804174733,0.04924747,2540.9,2540.7,0.07870718]
[1729804174929,3.93531,2541.1,2540.7,0.07870718]
[1729804175129,0.04907691,2540.8,2540.7,0.07870718]
[1729804175329,3.93531,2541.1,2540.7,0.07870718]
[1729804175525,0.04907126,2540.8,2540.7,0.07870718]
[1729804175748,3.93531,2541.1,2540.7,0.07870718]
[1729804175948,0.04907126,2540.8,2540.7,0.07870718]
[1729804176151,3.93531,2541.1,2540.7,0.07870718]
[1729804176356,0.04907758,2540.8,2540.7,0.07870718]
[1729804176563,3.93531,2541.1,2540.7,0.07870718]
[1729804177069,0.04917078,2541.0,2540.7,0.07870718]
[1729804178271,0.04917078,2541.0,2540.8,3.01]
[1729804178422,0.04917078,2541.0,2540.9,9.13536745]
[1729804178626,0.1229296,2541.5,2541.3,3.93496]
[1729804178860,0.1229296,2541.5,2541.4,1.178996]
[1729804179069,0.1229296,2541.5,2541.4,5.113826]
[1729804179225,0.1229296,2541.5,2541.4,9.14185063]
[1729804179426,0.1229296,2541.5,2541.4,8.113826]
[1729804179965,0.1229296,2541.5,2541.4,9.33574727]
[1729804180163,0.1229296,2541.5,2541.4,9.74399673]
[1729804180669,0.1229296,2541.5,2541.4,9.75399673]
[1729804180838,0.1229296,2541.5,2541.4,9.74399673]
[1729804181163,0.1229296,2541.5,2541.4,9.33573315]
[1729804181548,0.16348309,2541.5,2541.4,9.33573315]
[1729804181729,0.1229296,2541.5,2541.4,9.74399673]
[1729804183226,0.1229296,2541.5,2541.4,9.33540261]
[1729804183425,0.16372363,2541.5,2541.4,8.92837488]
[1729804183764,0.16372363,2541.5,2541.4,4.178996]
[1729804183928,0.1229296,2541.5,2541.4,4.178996]
[1729804184132,0.16406486,2541.5,2541.4,1.178996]
[1729804184765,0.16406486,2541.5,2541.4,0.393496]
[1729804184956,0.16406486,2541.5,2541.3,0.89323511]
[1729804185384,0.16406486,2541.5,2541.4,4.74937888]
[1729804185537,0.16406486,2541.5,2541.4,3.93483]
[1729804185741,0.16406486,2541.5,2541.4,7.83150544]
[1729804185974,0.1229296,2541.5,2541.4,8.97440661]
[1729804186176,0.1229296,2541.5,2541.4,7.75283]
[1729804186386,0.1229296,2541.5,2541.4,9.05269369]
[1729804186688,0.1229296,2541.5,2541.4,8.97402149]
[1729804187445,0.1229296,2541.5,2541.4,10.45721174]
[1729804187770,0.1229296,2541.5,2541.4,10.45459648]
[1729804188087,0.1229296,2541.5,2541.4,7.76283]
[1729804188282,0.1229296,2541.5,2541.4,10.31348029]
[1729804188585,0.1229296,2541.5,2541.4,8.27704101]
[1729804188746,0.1229296,2541.5,2541.4,9.90422253]
[1729804188945,0.1229296,2541.5,2541.4,8.27704101]
[1729804189259,0.1229296,2541.5,2541.4,7.76283]
[1729804189462,0.1229296,2541.5,2541.4,9.39004181]
[1729804191055,0.1229296,2541.5,2541.4,10.86348029]
[1729804191458,0.1229296,2541.5,2541.4,18.32286733]
[1729804191661,0.1229296,2541.5,2541.4,16.69654101]
[1729804191863,0.1229296,2541.5,2541.4,18.74298029]
[1729804192264,0.1229296,2541.5,2541.4,18.19298029]
[1729804192482,0.1229296,2541.5,2541.4,17.78290028]
[1729804192661,0.1229296,2541.5,2541.4,16.15654101]
[1729804192858,0.1229296,2541.5,2541.4,17.78290028]
[1729804193367,0.1229296,2541.5,2541.4,17.37634395]
[1729804193582,0.1229296,2541.5,2541.4,16.15654101]
[1729804194108,0.1229296,2541.5,2541.4,17.37637131]
[1729804196910,0.1229296,2541.5,2541.4,16.15654101]
[1729804197239,0.1229296,2541.5,2541.4,17.37660213]
[1729804197408,0.1229296,2541.5,2541.4,16.86239112]
[1729804197615,0.1229296,2541.5,2541.4,15.64233]